fUST/lending_fUST_20250824
["ID","MTS","AMOUNT","RATE_DAILY","PERIOD"]
[381065611,1755987042954,-151.0,0.0004281,120]
[381065612,1755987042963,-151.0,0.0004281,120]
[381065613,1755987042972,-334.351261,0.0004281,120]
[381065614,1755987042982,-151.0,0.0004281,120]
[381065615,1755987042991,-334.351261,0.0004281,120]
[381065616,1755987043000,-334.351261,0.0004281,120]
[381065617,1755987043009,-151.0,0.0004281,120]
[381065618,1755987043018,-334.351261,0.0004281,120]
[381065619,1755987043027,-310.190471,0.0004281,120]
[381065620,1755987043038,-456.442754,0.0004281,120]
[381065621,1755987043049,-456.442754,0.0004281,120]
[381065622,1755987043060,-310.190471,0.0004281,120]
[381065623,1755987043072,-310.190471,0.0004281,120]
[381065624,1755987043083,-456.442754,0.0004281,120]
[381065625,1755987043092,-310.190471,0.0004281,120]
[381065626,1755987043101,-456.442754,0.0004281,120]
[381065627,1755987043110,-170.637382,0.0004281,120]
[381065628,1755987043121,-1695.491154,0.0004281,120]
[381065629,1755987043132,-151.0,0.0004281,120]
[381065630,1755987043142,-1695.491154,0.0004281,120]
[381065631,1755987043152,-151.0,0.0004281,120]
[381065632,1755987043162,-170.637382,0.0004281,120]
[381065633,1755987043172,-151.0,0.0004281,120]
[381065635,1755987043182,-170.637382,0.0004281,120]
[381065637,1755987043192,-170.637382,0.0004281,120]
[381065639,1755987043204,-1695.491154,0.0004281,120]
[381065641,1755987043213,-1695.491154,0.0004281,120]
[381065643,1755987043396,-232.37252479,0.0004281,120]
[381065645,1755987043407,-844.50316758,0.0004281,120]
[381065647,1755987043416,-500.0,0.00042883,10]
[381065649,1755987043425,-500.0,0.00042883,10]
[381065650,1755987043434,-501.93147384,0.00042883,10]
[381065651,1755987043443,-500.0,0.00042883,10]
[381065652,1755987043452,-500.0,0.00042883,10]
[381065653,1755987043462,-500.0,0.00042883,10]
[381065654,1755987043472,-500.34795841,0.00042883,10]
[381065655,1755987043482,-500.0,0.00042883,10]
[381065656,1755987043492,-500.0,0.00042883,10]
[381065657,1755987043501,-500.0,0.00042883,10]
[381065658,1755987043511,-7357.52967304,0.00042978,3]
[381065659,1755987043521,-1440.584452,0.00042978,120]
[381065660,1755987043534,-151.0,0.00042978,30]
[381065661,1755987043544,-1440.584452,0.00042978,120]
[381065662,1755987043553,-1440.584452,0.00042978,120]
[381065663,1755987043563,-1440.584452,0.00042978,120]
[381065664,1755987043573,-500.0,0.00043013,60]
[381065665,1755987043583,-151.0,0.00043013,120]
[381065666,1755987043592,-151.0,0.00043013,120]
[381065667,1755987043603,-245.878208,0.00043013,120]
[381065668,1755987043614,-151.491058,0.00043013,120]
[381065669,1755987043625,-151.491058,0.00043013,120]
[381065670,1755987043635,-151.491058,0.00043013,120]
[381065671,1755987043644,-151.491058,0.00043013,120]
[381065672,1755987043656,-151.0,0.00043013,120]
[381065673,1755987043667,-233.624757,0.00043013,120]
[381065674,1755987043678,-237.529052,0.00043013,120]
[381065675,1755987043689,-151.0,0.00043013,120]
[381065676,1755987043699,-233.624757,0.00043013,120]
[381065677,1755987043711,-237.529052,0.00043013,120]
[381065678,1755987043723,-151.0,0.00043013,120]
[381065679,1755987043734,-233.624757,0.00043013,120]
[381065680,1755987043743,-237.529052,0.00043013,120]
[381065681,1755987043753,-233.624757,0.00043013,120]
[381065682,1755987043762,-237.529052,0.00043013,120]
[381065683,1755987043772,-500.0,0.00043287,60]
[381065684,1755987043782,-163.366267,0.00043287,120]
[381065685,1755987043791,-163.366267,0.00043287,120]
[381065686,1755987043801,-151.0,0.00043287,120]
[381065687,1755987043811,-163.366267,0.00043287,120]
[381065688,1755987043821,-163.366267,0.00043287,120]
[381065689,1755987043830,-151.0,0.00043287,120]
[381065690,1755987043840,-373.340385,0.00043287,120]
[381065691,1755987043849,-373.340385,0.00043287,120]
[381065692,1755987043860,-373.340385,0.00043287,120]
[381065693,1755987043870,-373.340385,0.00043287,120]
[381065694,1755987043886,-151.0,0.00043287,120]
[381065695,1755987043896,-302.28126,0.00043287,15]
[381065696,1755987043905,-302.28126,0.00043287,15]
[381065697,1755987043914,-302.28126,0.00043287,15]
[381065698,1755987043923,-151.0,0.00043287,120]
[381065699,1755987043933,-302.28126,0.00043287,15]
[381065700,1755987043942,-151.0,0.00043287,120]
[381065701,1755987043952,-151.0,0.00043287,120]
[381065702,1755987043961,-171.714576,0.00043287,120]
[381065703,1755987043970,-151.0,0.00043287,120]
[381065704,1755987043980,-171.714576,0.00043287,120]
[381065705,1755987043990,-171.714576,0.00043287,120]
[381065706,1755987043999,-200.0,0.00043287,7]
[381065707,1755987044008,-200.0,0.00043287,7]
[381065708,1755987044018,-200.0,0.00043287,7]
[381065709,1755987044027,-171.714576,0.00043287,120]
[381065710,1755987044036,-200.0,0.00043287,7]
[381065711,1755987044046,-200.0,0.00043287,7]
[381065712,1755987044056,-151.0,0.00043287,120]
[381065713,1755987044065,-151.0,0.00043287,120]
[381065714,1755987044074,-151.528159,0.00043287,120]
[381065715,1755987044084,-151.528159,0.00043287,120]
[381065716,1755987044093,-151.0,0.00043287,120]
[381065717,1755987044103,-151.528159,0.00043287,120]
[381065718,1755987044112,-151.0,0.00043287,120]
[381065719,1755987044121,-151.528159,0.00043287,120]
[381065720,1755987044131,-556.318812,0.00043287,120]
[381065721,1755987044141,-556.318812,0.00043287,120]
[381065722,1755987044150,-556.318812,0.00043287,120]
[381065723,1755987044159,-556.318812,0.00043287,120]
[381065724,1755987044169,-1000.0,0.00043431,10]
[381065725,1755987044179,-1000.0,0.00043431,10]
[381065726,1755987044189,-229.17593998,0.00043431,10]
[381065727,1755987044198,-773.71807588,0.00043431,10]
[381065728,1755987044208,-1000.0,0.00043431,10]
[381065729,1755987044219,-238.0,0.00043561,60]
[381065730,1755987044230,-168.0,0.00043693,2]
[381065731,1755987044239,-500.0,0.00043835,120]
[381065732,1755987044248,-168.0,0.00043971,2]
[381065733,1755987044258,-1500.0,0.00043979,10]
[381065734,1755987044267,-500.0,0.00043979,10]
[381065735,1755987044276,-151.0,0.0004399,120]
[381065736,1755987044285,-151.0,0.0004399,120]
[381065737,1755987044295,-151.0,0.0004399,120]
[381065738,1755987044304,-151.0,0.0004399,120]
[381065739,1755987044314,-151.0,0.0004399,120]
[381065740,1755987044323,-151.0,0.0004399,120]
[381065741,1755987044332,-242.680272,0.0004399,120]
[381065742,1755987044341,-242.680272,0.0004399,120]
[381065743,1755987044351,-242.680272,0.0004399,120]
[381065744,1755987044360,-242.680272,0.0004399,120]
[381065745,1755987044370,-151.0,0.0004399,120]
[381065746,1755987044379,-151.0,0.0004399,14]
[381065747,1755987044388,-151.0,0.0004399,120]
[381065748,1755987044398,-151.0,0.0004399,14]
[381065749,1755987044407,-151.0,0.0004399,14]
[381065750,1755987044416,-151.0,0.0004399,120]
[381065751,1755987044426,-151.0,0.0004399,120]
[381065752,1755987044435,-151.0,0.0004399,120]
[381065753,1755987044444,-151.0,0.0004399,120]
[381065754,1755987044454,-482.620001,0.0004399,120]
[381065755,1755987044463,-482.620001,0.0004399,120]
[381065756,1755987044472,-482.620001,0.0004399,120]
[381065757,1755987044481,-482.620001,0.0004399,120]
[381065758,1755987044491,-160.0,0.0004399,120]
[381065759,1755987044500,-217.0334113,0.0004399,120]
[381065760,1755987044510,-18553.0857991,0.00044,120]
[381065761,1755987044519,-232.37252479,0.00044,120]
[381065762,1755987044532,-7357.52967304,0.00044046,3]
[381065763,1755987044541,-151.0,0.00044056,120]
[381065764,1755987044550,-151.0,0.00044056,120]
[381065765,1755987044560,-151.0,0.00044056,120]
[381065766,1755987044569,-274.529145,0.00044056,120]
[381065767,1755987044579,-156.248367,0.00044056,120]
[381065768,1755987044588,-151.0,0.00044056,120]
[381065769,1755987044597,-151.0,0.00044056,120]
[381065770,1755987044606,-151.0,0.00044056,120]
[381065771,1755987044615,-151.0,0.00044056,120]
[381065772,1755987044624,-151.0,0.00044056,120]
[381065773,1755987044633,-244.58102,0.00044056,120]
[381065774,1755987044643,-151.0,0.00044056,120]
[381065775,1755987044652,-151.0,0.00044056,120]
[381065776,1755987044662,-151.0,0.00044056,120]
[381065777,1755987044672,-151.0,0.00044056,120]
[381065778,1755987044681,-496.638635,0.00044056,120]
[381065779,1755987044691,-496.638635,0.00044056,120]
[381065780,1755987044701,-496.638635,0.00044056,120]
[381065781,1755987044711,-496.638635,0.00044056,120]
[381065782,1755987044721,-151.0,0.00044056,120]
[381065783,1755987044730,-151.0,0.00044056,120]
[381065784,1755987044739,-151.0,0.00044056,120]
[381065785,1755987044748,-151.0,0.00044056,120]
[381065786,1755987044758,-151.0,0.00044056,120]
[381065787,1755987044767,-151.0,0.00044056,120]
[381065788,1755987044776,-334.351261,0.00044056,120]
[381065789,1755987044785,-151.0,0.00044056,120]
[381065790,1755987044795,-334.351261,0.00044056,120]
[381065791,1755987044804,-334.351261,0.00044056,120]
[381065792,1755987044813,-151.0,0.00044056,120]
[381065793,1755987044822,-334.351261,0.00044056,120]
[381065794,1755987044832,-310.190471,0.00044056,120]
[381065795,1755987044841,-456.442754,0.00044056,120]
[381065796,1755987044850,-456.442754,0.00044056,120]
[381065797,1755987044859,-310.190471,0.00044056,120]
[381065798,1755987044868,-310.190471,0.00044056,120]
[381065799,1755987044877,-456.442754,0.00044056,120]
[381065800,1755987044887,-310.190471,0.00044056,120]
[381065801,1755987044896,-456.442754,0.00044056,120]
[381065802,1755987044905,-160.0,0.00044056,120]
[381065803,1755987044915,-170.637382,0.00044056,120]
[381065804,1755987044924,-1695.491154,0.00044056,120]
[381065805,1755987044933,-151.0,0.00044056,120]
[381065806,1755987044942,-1695.491154,0.00044056,120]
[381065807,1755987044952,-151.0,0.00044056,120]
[381065808,1755987044960,-217.0334113,0.00044056,120]
[381065809,1755987044969,-170.637382,0.00044056,120]
[381065810,1755987044979,-152.010756,0.00044056,120]
[381065811,1755987044988,-170.637382,0.00044056,120]
[381065812,1755987044997,-170.637382,0.00044056,120]
[381065813,1755987045007,-1695.491154,0.00044056,120]
[381065814,1755987045016,-1695.491154,0.00044056,120]
[381065815,1755987045026,-151.0,0.00044056,120]
[381065816,1755987045035,-151.0,0.00044056,30]
[381065817,1755987045044,-151.0,0.00044056,120]
[381065818,1755987045053,-151.0,0.00044056,30]
[381065819,1755987045063,-151.0,0.00044056,120]
[381065820,1755987045072,-151.0,0.00044056,120]
[381065821,1755987045081,-151.0,0.00044056,120]
[381065822,1755987045090,-151.0,0.00044056,120]
[381065823,1755987045099,-466.358217,0.00044056,120]
[381065824,1755987045108,-151.0,0.00044056,120]
[381065825,1755987045117,-151.0,0.00044056,120]
[381065826,1755987045126,-466.358217,0.00044056,120]
[381065827,1755987045135,-151.0,0.00044056,120]
[381065828,1755987045145,-466.358217,0.00044056,120]
[381065829,1755987045154,-466.358217,0.00044056,120]
[381065830,1755987045163,-151.0,0.00044056,120]
[381065831,1755987045173,-158.55,0.00044056,120]
[381065832,1755987045182,-158.55,0.00044056,120]
[381065833,1755987045191,-158.55,0.00044056,120]
[381065834,1755987045201,-158.55,0.00044056,120]
[381065835,1755987045211,-326.81614,0.00044056,120]
[381065836,1755987045220,-326.81614,0.00044056,120]
[381065837,1755987045230,-326.81614,0.00044056,120]
[381065838,1755987045239,-326.81614,0.00044056,120]
[381065839,1755987045249,-151.0,0.00044056,120]
[381065840,1755987045259,-320.559826,0.00044056,120]
[381065841,1755987045270,-320.559826,0.00044056,120]
[381065842,1755987045280,-320.559826,0.00044056,120]
[381065843,1755987045290,-320.559826,0.00044056,120]
[381065844,1755987045300,-163.366267,0.00044056,120]
[381065845,1755987045309,-163.366267,0.00044056,120]
[381065846,1755987045319,-151.0,0.00044056,120]
[381065847,1755987045328,-163.366267,0.00044056,120]
[381065848,1755987045338,-151.0,0.00044056,120]
[381065849,1755987045348,-163.366267,0.00044056,120]
[381065850,1755987045358,-151.0,0.00044056,120]
[381065851,1755987045367,-151.0,0.00044056,120]
[381065852,1755987045377,-373.340385,0.00044056,120]
[381065853,1755987045387,-373.340385,0.00044056,120]
[381065854,1755987045396,-373.340385,0.00044056,120]
[381065855,1755987045405,-373.340385,0.00044056,120]
[381065856,1755987045415,-153.181892,0.00044056,120]
[381065857,1755987045424,-302.28126,0.00044056,15]
[381065858,1755987045434,-302.28126,0.00044056,15]
[381065859,1755987045444,-302.28126,0.00044056,15]
[381065860,1755987045453,-151.0,0.00044056,120]
[381065861,1755987045463,-302.28126,0.00044056,15]
[381065862,1755987045472,-151.0,0.00044056,120]
[381065863,1755987045482,-151.0,0.00044056,120]
[381065864,1755987045491,-171.714576,0.00044056,120]
[381065865,1755987045501,-200.727566,0.00044056,120]
[381065866,1755987045511,-171.714576,0.00044056,120]
[381065867,1755987045521,-171.714576,0.00044056,120]
[381065868,1755987045535,-171.714576,0.00044056,120]
[381065869,1755987045549,-151.0,0.00044056,120]
[381065870,1755987045560,-151.0,0.00044056,120]
[381065872,1755987045569,-151.528159,0.00044056,120]
[381065874,1755987045579,-151.528159,0.00044056,120]
[381065875,1755987045588,-151.0,0.00044056,120]
[381065876,1755987045598,-151.528159,0.00044056,120]
[381065877,1755987045609,-181.781199,0.00044056,120]
[381065878,1755987045618,-151.528159,0.00044056,120]
[381065879,1755987045628,-556.318812,0.00044056,120]
[381065880,1755987045637,-1440.584452,0.00044056,120]
[381065881,1755987045647,-556.318812,0.00044056,120]
[381065882,1755987045659,-1440.584452,0.00044056,120]
[381065883,1755987045668,-556.318812,0.00044056,120]
[381065884,1755987045678,-1440.584452,0.00044056,120]
[381065885,1755987045687,-556.318812,0.00044056,120]
[381065886,1755987045696,-1440.584452,0.00044056,120]
[381065887,1755987045764,-7206.98721289,0.00044056,94]
[381065888,1755987045773,-5000.0,0.00044056,88]
[381065889,1755987045784,-5000.0,0.00044056,92]
[381065890,1755987045794,-281.33198475,0.00044072,43]
[381065891,1755987045803,-160.0,0.00044173,2]
[381065892,1755987045812,-168.0,0.00044197,2]
[381065893,1755987045822,-151.0,0.00044197,120]
[381065894,1755987045832,-151.0,0.00044197,120]
[381065895,1755987045841,-151.0,0.00044197,120]
[381065896,1755987045850,-204.818718,0.00044197,120]
[381065897,1755987045859,-204.818718,0.00044197,120]
[381065898,1755987045869,-204.818718,0.00044197,120]
[381065899,1755987045878,-204.818718,0.00044197,120]
[381065900,1755987045887,-151.0,0.00044197,120]
[381065901,1755987045897,-151.0,0.00044197,120]
[381065902,1755987045906,-151.0,0.00044197,120]
[381065903,1755987045915,-151.0,0.00044197,120]
[381065904,1755987045925,-151.0,0.00044197,120]
[381065905,1755987045934,-376.14580871,0.00044206,2]
[381065906,1755987045944,-529.05847148,0.00044206,2]
[381065907,1755987045955,-160.0,0.00044206,2]
[381065908,1755987045965,-160.0,0.00044206,2]
[381065909,1755987045975,-160.0,0.00044221,2]
[381065910,1755987045986,-168.0,0.00044265,2]
[381065911,1755987045995,-1113.10459336,0.00044329,95]
[381065912,1755987046005,-168.0,0.00044354,2]
[381065913,1755987046015,-160.484735,0.00044521,2]
[381065914,1755987046025,-503.24542109,0.00044527,10]
[381065915,1755987046036,-574.79,0.000446,14]
[381065916,1755987046045,-1000.0,0.00044773,10]
[381065917,1755987046058,-151.0,0.0004478,120]
[381065918,1755987046067,-151.0,0.0004478,120]
[381065919,1755987046077,-151.0,0.0004478,14]
[381065920,1755987046086,-151.0,0.0004478,14]
[381065921,1755987046095,-151.0,0.0004478,14]
[381065922,1755987046104,-151.0,0.0004478,14]
[381065923,1755987046115,-151.0,0.0004478,14]
[381065924,1755987046124,-151.0,0.0004478,14]
[381065926,1755987046133,-151.0,0.0004478,14]
[381065928,1755987046142,-151.0,0.0004478,14]
[381065929,1755987046152,-232.99864,0.0004478,14]
[381065930,1755987046163,-151.491058,0.0004478,120]
[381065931,1755987046173,-151.491058,0.0004478,120]
[381065932,1755987046182,-151.491058,0.0004478,120]
[381065933,1755987046191,-151.491058,0.0004478,120]
[381065934,1755987046201,-151.0,0.0004478,120]
[381065935,1755987046211,-233.624757,0.0004478,120]
[381065936,1755987046221,-237.529052,0.0004478,120]
[381065937,1755987046232,-151.0,0.0004478,120]
[381065938,1755987046241,-233.624757,0.0004478,120]
[381065939,1755987046250,-237.529052,0.0004478,120]
[381065940,1755987046261,-151.0,0.0004478,120]
[381065941,1755987046272,-233.624757,0.0004478,120]
[381065942,1755987046283,-237.529052,0.0004478,120]
[381065943,1755987046292,-233.624757,0.0004478,120]
[381065944,1755987046302,-237.529052,0.0004478,120]
[381065945,1755987046315,-7357.52967304,0.0004478,3]
[381065946,1755987046325,-151.0,0.0004479,120]
[381065947,1755987046335,-151.0,0.0004479,120]
[381065948,1755987046345,-151.0,0.0004479,120]
[381065949,1755987046354,-151.0,0.0004479,120]
[381065950,1755987046363,-151.0,0.0004479,120]
[381065951,1755987046372,-151.0,0.0004479,120]
[381065952,1755987046381,-236.018836,0.0004479,120]
[381065953,1755987046390,-236.018836,0.0004479,120]
[381065954,1755987046400,-236.018836,0.0004479,120]
[381065955,1755987046409,-236.018836,0.0004479,120]
[381065956,1755987046418,-151.0,0.0004479,120]
[381065957,1755987046427,-151.0,0.0004479,120]
[381065958,1755987046436,-151.0,0.0004479,120]
[381065959,1755987046445,-159.020872,0.0004479,120]
[381065960,1755987046454,-151.0,0.0004479,120]
[381065961,1755987046463,-151.0,0.0004479,120]
[381065962,1755987046473,-242.680272,0.0004479,120]
[381065963,1755987046482,-242.680272,0.0004479,120]
[381065964,1755987046491,-242.680272,0.0004479,120]
[381065965,1755987046500,-242.680272,0.0004479,120]
[381065966,1755987046510,-151.0,0.0004479,120]
[381065967,1755987046520,-151.0,0.0004479,14]
[381065968,1755987046534,-151.0,0.0004479,14]
[381065969,1755987046544,-151.0,0.0004479,120]
[381065970,1755987046554,-151.0,0.0004479,14]
[381065971,1755987046564,-151.0,0.0004479,120]
[381065972,1755987046574,-151.0,0.0004479,120]
[381065973,1755987046583,-151.0,0.0004479,120]
[381065974,1755987046594,-151.0,0.0004479,120]
[381065975,1755987046606,-482.620001,0.0004479,120]
[381065976,1755987046616,-482.620001,0.0004479,120]
[381065977,1755987046626,-482.620001,0.0004479,120]
[381065978,1755987046635,-482.620001,0.0004479,120]
[381065979,1755987046645,-200.58,0.000448,7]
[381065980,1755987046655,-5686.34,0.000448,14]
[381065981,1755987046664,-6490.77704324,0.000449,10]
[381065982,1755987046674,-151.0,0.00044973,120]
[381065983,1755987046683,-151.0,0.00044973,120]
[381065984,1755987046693,-151.664793,0.00044973,120]
[381065985,1755987046703,-484.2445147,0.00044987,90]
[381065986,1755987046713,-6919.56301401,0.00045,2]
[381065987,1755987046723,-151.0,0.00045,120]
[381065988,1755987046732,-151.0,0.00045,120]
[381065989,1755987046741,-151.0,0.00045,120]
[381065990,1755987046750,-154.555483,0.00045,120]
[381065991,1755987046760,-151.0,0.00045,120]
[381065992,1755987046770,-151.0,0.00045,120]
[381065993,1755987046780,-253.165786,0.00045,120]
[381065994,1755987046789,-232.37252479,0.00045,3]
[381065995,1755987046798,-844.50316758,0.00045,3]
[381065996,1755987046808,-1440.584452,0.00045,120]
[381065997,1755987046818,-1440.584452,0.00045,120]
[381065998,1755987046827,-1440.584452,0.00045,120]
[381065999,1755987046836,-1440.58445856,0.00045,120]
[381066000,1755987046845,-168.0,0.00045137,2]
[381066001,1755987046854,-168.0,0.00045177,2]
[381066002,1755987046863,-500.0,0.00045205,120]
[381066003,1755987046872,-168.0,0.00045556,2]
[381066004,1755987046880,-168.0,0.00045669,2]
[381066005,1755987046890,-151.0,0.00045669,120]
[381066006,1755987046899,-151.0,0.00045669,120]
[381066007,1755987046908,-151.0,0.00045669,120]
[381066008,1755987046917,-151.0,0.00045669,120]
[381066009,1755987046926,-151.0,0.00045669,120]
[381066010,1755987046935,-151.0,0.00045669,30]
[381066011,1755987046945,-151.0,0.00045669,120]
[381066012,1755987046954,-151.0,0.00045669,30]
[381066013,1755987046963,-151.0,0.00045669,120]
[381066014,1755987046972,-151.0,0.00045669,120]
[381066015,1755987046981,-151.0,0.00045669,120]
[381066016,1755987046990,-151.0,0.00045669,120]
[381066017,1755987046999,-151.0,0.00045669,120]
[381066018,1755987047009,-466.358217,0.00045669,120]
[381066019,1755987047020,-151.0,0.00045669,120]
[381066020,1755987047030,-466.358217,0.00045669,120]
[381066021,1755987047039,-151.0,0.00045669,120]
[381066022,1755987047048,-466.358217,0.00045669,120]
[381066023,1755987047058,-466.358217,0.00045669,120]
[381066024,1755987047068,-203.529542,0.00045669,120]
[381066025,1755987047078,-158.55,0.00045669,120]
[381066026,1755987047087,-158.55,0.00045669,120]
[381066027,1755987047096,-158.55,0.00045669,120]
[381066028,1755987047107,-158.55,0.00045669,120]
[381066029,1755987047117,-326.81614,0.00045669,120]
[381066030,1755987047127,-326.81614,0.00045669,120]
[381066031,1755987047137,-326.81614,0.00045669,120]
[381066032,1755987047148,-326.81614,0.00045669,120]
[381066033,1755987047159,-151.0,0.00045669,120]
[381066034,1755987047170,-320.559826,0.00045669,120]
[381066035,1755987047181,-320.559826,0.00045669,120]
[381066036,1755987047192,-320.559826,0.00045669,120]
[381066037,1755987047205,-320.559826,0.00045669,120]
[381066038,1755987047216,-151.0,0.00045669,120]
[381066039,1755987047225,-151.0,0.00045669,120]
[381066040,1755987047236,-281.33198475,0.00045798,47]
[381066041,1755987047246,-168.0,0.00046224,2]
[381066042,1755987047255,-168.0,0.0004629,2]
[381066043,1755987047269,-500.0,0.00046482,30]
[381066044,1755987047280,-500.0,0.00046575,120]
[381066045,1755987047290,-168.0,0.00047254,2]
[381066046,1755987047304,-500.0,0.00047267,10]
[381066047,1755987047314,-168.0,0.00047288,2]
[381066048,1755987047325,-168.0,0.00047332,2]
[381066049,1755987047335,-281.33198475,0.00047525,50]
[381066050,1755987047344,-217.0334113,0.00047743,2]
[381066051,1755987047354,-160.0,0.00047743,2]
[381066052,1755987047363,-844.50316758,0.00047743,2]
[381066053,1755987047372,-232.37252479,0.00047743,2]
[381066054,1755987047381,-206.72367357,0.00047815,10]
[381066055,1755987047391,-500.0,0.00047858,10]
[381066056,1755987047400,-607.09690976,0.00047945,120]
[381066057,1755987047409,-232.37252479,0.00048,10]
[381066058,1755987047419,-844.50316758,0.00048,10]
[381066059,1755987047428,-168.0,0.0004804,2]
[381066060,1755987047439,-168.0,0.00048276,2]
[381066061,1755987047448,-225.73,0.00048767,120]
[381066062,1755987047458,-163.0025745,0.00049041,30]
[381066063,1755987047467,-7357.52967304,0.00049492,4]
[381066064,1755987047476,-163.366267,0.00049492,120]
[381066065,1755987047486,-163.366267,0.00049492,120]
[381066066,1755987047496,-151.0,0.00049492,120]
[381066067,1755987047506,-163.366267,0.00049492,120]
[381066068,1755987047515,-163.366271,0.00049492,120]
[381066069,1755987047525,-151.0,0.00049492,120]
[381066070,1755987047538,-373.340385,0.00049492,120]
[381066071,1755987047547,-373.340385,0.00049492,120]
[381066072,1755987047557,-373.340385,0.00049492,120]
[381066073,1755987047566,-373.340377,0.00049492,120]
[381066074,1755987047578,-302.28126,0.00049492,15]
[381066075,1755987047587,-302.28126,0.00049492,15]
[381066076,1755987047596,-302.28126,0.00049492,15]
[381066077,1755987047608,-151.0,0.00049492,120]
[381066078,1755987047626,-302.28127,0.00049492,15]
[381066079,1755987047635,-151.0,0.00049492,120]
[381066080,1755987047645,-151.0,0.00049492,120]
[381066081,1755987047654,-171.714576,0.00049492,120]
[381066082,1755987047663,-171.714576,0.00049492,120]
[381066083,1755987047673,-171.714576,0.00049492,120]
[381066084,1755987047682,-171.714579,0.00049492,120]
[381066085,1755987047691,-151.0,0.00049492,120]
[381066086,1755987047701,-151.0,0.00049492,120]
[381066087,1755987047710,-151.528159,0.00049492,120]
[381066088,1755987047719,-151.528159,0.00049492,120]
[381066089,1755987047729,-151.0,0.00049492,120]
[381066090,1755987047741,-151.528159,0.00049492,120]
[381066091,1755987047751,-151.528167,0.00049492,120]
[381066092,1755987047760,-556.318812,0.00049492,120]
[381066093,1755987047769,-556.318812,0.00049492,120]
[381066094,1755987047779,-556.318812,0.00049492,120]
[381066095,1755987047788,-556.318806,0.00049492,120]
[381066096,1755987047798,-496.638635,0.00049502,120]
[381066097,1755987047807,-496.638635,0.00049502,120]
[381066098,1755987047817,-496.638635,0.00049502,120]
[381066099,1755987047826,-496.638635,0.00049502,120]
[381066100,1755987047835,-151.0,0.00049502,120]
[381066101,1755987047845,-151.0,0.00049502,120]
[381066102,1755987047854,-151.0,0.00049502,120]
[381066103,1755987047864,-221.537358,0.00049502,120]
[381066104,1755987047873,-151.0,0.00049502,120]
[381066105,1755987047883,-334.351261,0.00049502,120]
[381066106,1755987047893,-151.0,0.00049502,120]
[381066107,1755987047902,-334.351261,0.00049502,120]
[381066108,1755987047912,-334.351261,0.00049502,120]
[381066109,1755987047921,-169.111239,0.00049502,120]
[381066110,1755987047930,-334.351261,0.00049502,120]
[381066111,1755987047940,-310.190471,0.00049502,120]
[381066112,1755987047949,-456.442754,0.00049502,120]
[381066113,1755987047959,-456.442754,0.00049502,120]
[381066114,1755987047968,-310.190471,0.00049502,120]
[381066115,1755987047978,-310.190471,0.00049502,120]
[381066116,1755987047989,-456.442754,0.00049502,120]
[381066117,1755987047998,-310.190471,0.00049502,120]
[381066118,1755987048008,-456.442754,0.00049502,120]
[381066119,1755987048017,-1695.491154,0.00049502,120]
[381066120,1755987048027,-151.0,0.00049502,120]
[381066121,1755987048036,-170.637382,0.00049502,120]
[381066122,1755987048046,-1695.491154,0.00049502,120]